Cogmind - Beta 15 @@@ ROGUE MODE // 2025.06.06 @ 17:40:28 Player: irisidem Result: Self-destructed Performance ------------- Evolutions (3) 1500 Regions Visited (8) 1600 Robots Destroyed (71) 355 Value Destroyed (1789) 1789 Prototype IDs (6) 120 Alien Tech Used (0) 0 Bonus (830) 830 TOTAL SCORE: 6194 Bonus ------- High Alert Combat Kills 30 Entered DSFs 500 Aligned with FarCom 300 Cogmind --------- Core Integrity 547/700 Matter 189/300 Energy 57/300 System Corruption 0% Temperature Cool (66) Movement Core (350) Ox6 Location -7/DSF Parts ------- > --- POWER (1) -------- Enhanced Nuclear Core > --- PROPULSION (5) --- (None) > --- UTILITY (4) ------ Medium Storage Unit Improved Signal Interpreter Particle Charger > --- WEAPON (3) ------- (None) > --- INVENTORY (10) --- Light Deuterium Engine Light Nuclear Core Xenon Bombardment Thruster Target Analyzer Target Analyzer Improved Medium Armor Plating Ion Cannon Peak State ------------ > --- POWER ------------ Enhanced Nuclear Core > --- PROPULSION ------- Improved VTOL Module Flying Fortress v7 > --- UTILITY ---------- Medium Storage Unit Improved Signal Interpreter Particle Charger Improved Medium Armor Plating > --- WEAPON ----------- Lightning Gun Lightning Gun Heavy Particle Gun > --- INVENTORY -------- Deuterium Engine Light Deuterium Engine Light Nuclear Core Xenon Bombardment Thruster Target Analyzer Target Analyzer Improved Light Armor Plating Heavy Particle Cannon Heavy Particle Cannon Ion Cannon [Rating: 67] Favorites ----------- Power Ion Engine Engine Ion Engine Power Core Light Nuclear Core Propulsion Aluminum Leg Treads Light Treads Leg Aluminum Leg Flight Unit Flying Fortress v7 Utility Signal Interpreter Device Sensor Array Storage Medium Storage Unit Processor Signal Interpreter Protection Improved Light Armor Plating Weapon Heavy Particle Gun Energy Gun Heavy Particle Gun Energy Cannon Heavy Particle Cannon Ballistic Gun Light Assault Rifle Launcher Grenade Launcher Slashing Weapon Mining Claw Build | -11 -10 -9 -9 -9 -8 -8 -7 -7 ------- Run | Yrd Mat Mat Min Exi Min Mat Fac DSF Slots Evolved 6 | . . 2 . . . 2 2 . Power . | . . . . . . . . . Propulsion 3 | . . 2 . . . . 1 . Utility 2 | . . . . . . 1 1 . Weapon 1 | . . . . . . 1 . . Parts Attached 49 | 6 6 14 1 1 1 10 8 2 Power 6 | 1 1 1 . . . 2 1 . Engine 4 | 1 . 1 . . . 2 . . Core 2 | . 1 . . . . . 1 . Reactor . | . . . . . . . . . Propulsion 14 | 2 2 8 . 1 . . 1 . Treads 1 | . . 1 . . . . . . Leg 11 | 2 2 7 . . . . . . Wheel . | . . . . . . . . . Hover . | . . . . . . . . . Flight 2 | . . . . 1 . . 1 . Utility 10 | 1 2 1 . . . 2 4 . Device 2 | . 1 . . . . . 1 . Storage 2 | 1 . . . . . 1 . . Processor 3 | . 1 1 . . . . 1 . Hackware . | . . . . . . . . . Protection 3 | . . . . . . 1 2 . Artifact . | . . . . . . . . . Weapon 19 | 2 1 4 1 . 1 6 2 2 Energy Gun 7 | . . 3 . . . . 2 2 Energy Cannon 2 | . . . . . . 2 . . Ballistic Gun 2 | 2 . . . . . . . . Ballistic Cannon . | . . . . . . . . . Launcher 7 | . . 1 1 . 1 4 . . Special Weapon . | . . . . . . . . . Impact Weapon . | . . . . . . . . . Slashing Weapon 1 | . 1 . . . . . . . Piercing Weapon . | . . . . . . . . . Special Melee Weapon . | . . . . . . . . . Unidentified Prototypes 4 | . . 1 . 1 . . 2 . Parts Lost 13 | . 4 3 . . . . . 6 Power 2 | . 1 1 . . . . . . Propulsion 4 | . 2 . . . . . . 2 Utility 1 | . . 1 . . . . . . Weapon 6 | . 1 1 . . . . . 4 Highest Loss Streak 6 | . 3 1 . . . . . 6 To Critical Strikes . | . . . . . . . . . Average Backups 5 | 1 4 4 4 4 5 8 8 9 Power 1 | . 1 . 1 . 1 1 2 2 Propulsion . | . . . . . . . . 1 Utility 1 | . 1 . . . 1 2 2 3 Weapon 3 | . 2 2 3 2 3 4 3 2 Tool/Special . | . . . . . . . . . Unused Backups 18 | . 2 5 2 . . 2 2 5 Power 5 | . 1 2 1 . . . . 1 Propulsion 1 | . . . . . . . . 1 Utility 4 | . . 2 . . . . . 2 Weapon 8 | . 1 1 1 . . 2 2 1 Tool/Special . | . . . . . . . . . Average Slot Usage (%) 83 | . 75 90 100 80 66 70 75 67 Engine 8 | . 5 4 11 11 11 9 3 . Core 2 | . 6 6 . . . . 3 7 Leg 22 | . 21 35 44 19 . . . . Flight 3 | . . . . 6 11 9 14 12 Device 2 | . 5 6 . . . . 7 7 Storage 2 | . 8 . . . . 7 7 7 Processor 16 | . 5 14 22 22 22 18 7 7 Energy Gun 10 | . . 9 17 11 10 8 15 20 Ballistic Gun 3 | . 18 3 . . . . . . Launcher 6 | . . 8 4 11 11 14 . . Peak Build Rating 67 | 6 8 16 16 41 42 51 67 67 Average Rating 24 | 4 6 12 14 29 41 48 61 58 On Entrance 27 | . 6 8 15 13 41 42 51 67 Naked Turns . | . . . . . . . . . Heaviest Build 40 | 12 13 12 11 11 12 34 40 39 Greatest Support 50 | 20 20 40 20 50 50 50 50 50 Greatest Overweight (x) 1 | . 1 1 . . . . . . Average Overweight (x) . | . . . . . . . . . Largest Inventory Capacity 10 | 8 8 5 5 5 5 10 10 10 Average Capacity 6 | 6 6 5 5 5 5 9 10 10 Most Carried 10 | 4 8 5 5 5 5 10 10 10 Average Carried 5 | 1 5 4 4 4 5 8 8 9 Final Capacity 10 | 8 5 5 5 5 5 10 10 10 Final Carried 10 | 1 5 5 5 5 5 10 10 7 Class Distribution -------------------- 45% | Scavenger-Mutant 36% | Mutant 17% | Skirmisher Dominant Class ---------------- Mutant | -10/Materials Scavenger-Mutant | -9/Materials Scavenger-Mutant | -9/Mines Mutant | -9/Exiles Mutant | -8/Mines Skirmisher | -8/Materials Skirmisher | -7/Factory Skirmisher | -7/DSF Resources | -11 -10 -9 -9 -9 -8 -8 -7 -7 ----------- Run | Yrd Mat Mat Min Exi Min Mat Fac DSF Matter Collected 1376 | 117 208 397 104 . 156 364 30 . Remotely . | . . . . . . . . . Salvage Created 1933 | . 189 844 29 . 246 433 30 162 Parts 131 | . 13 49 6 . 15 31 4 13 Haulers Intercepted 5 | . . 3 . . . 2 . . Recyclers Shooed 3 | . 1 2 . . . . . . Parts Field Recycled . | . . . . . . . . . Retrieved Matter . | . . . . . . . . . Parts Self-Destructed . | . . . . . . . . . Prevented . | . . . . . . . . . Kills | -11 -10 -9 -9 -9 -8 -8 -7 -7 ------- Run | Yrd Mat Mat Min Exi Min Mat Fac DSF Combat Hostiles Destroyed 53 | . 5 18 4 . 9 13 . 4 Guns 23 | . 5 8 . . 1 5 . 4 Cannons 3 | . . . . . . 3 . . AOE 27 | . . 10 4 . 8 5 . . Classes Destroyed 14 | . 4 4 . . 2 2 . 2 Worker 1 | . . 1 . . . . . . Builder 3 | . . . . . . 2 1 . Tunneler 1 | . . . . . 1 . . . Hauler 5 | . . 3 . . . 2 . . Recycler 3 | . . 3 . . . . . . Operator 1 | . 1 . . . . . . . Watcher 4 | . 1 1 . . . 2 . . Swarmer 22 | . 2 7 4 . 3 6 . . Cutter 3 | . . . . . . . . 3 Grunt 18 | . 3 7 . . 5 3 . . Duelist 1 | . . . . . 1 . . . Sentry 6 | . . 4 . . . 2 . . Specialist 1 | . . . . . . . . 1 Hunter 2 | . . . . . . 2 . . Best Kill Streak 6 | . 2 6 4 . 3 6 1 4 Combat Bots Only 5 | . 2 5 4 . 3 5 . 4 Max Kills in Single Turn 3 | . 1 3 2 . 3 3 1 2 Gunslinging 1 | . . . . . . . . 1 Exploded 3 | . . 3 2 . 3 3 . . Melee . | . . . . . . . . . Uniques/NPCs Destroyed . | . . . . . . . . . Combat | -11 -10 -9 -9 -9 -8 -8 -7 -7 -------- Run | Yrd Mat Mat Min Exi Min Mat Fac DSF Hostile Shots Fired 296 | . 82 44 7 . 9 97 . 57 Missed 87 | . 21 7 4 . 5 35 . 15 Hits 209 | . 61 37 3 . 4 62 . 42 Melee 11 | . . . . . . . . 11 Projectile 198 | . 61 37 3 . 4 62 . 31 AOE 1 | . . . . . . . . 1 Critical Strikes 11 | . 2 2 . . . 3 . 4 Damage Taken 3292 | . 695 514 24 . 109 986 . 964 Core 459 | . 145 68 6 . 18 69 . 153 Absorbed by Shields . | . . . . . . . . . Regen/Repaired (Parts) 31 | . . . . . . 31 . . Core Remaining (%) 76 | 100 42 . . . 77 87 . . Volleys Fired 191 | . 49 54 7 . 13 50 5 13 Largest 3 | . 2 2 2 . 2 3 3 3 Hottest 170 | . 40 110 110 . 88 130 170 165 Shots Fired 303 | . 76 83 8 . 18 77 7 34 Gun 222 | . 76 60 2 . 6 38 6 34 Cannon 14 | . . . . . . 13 1 . Launcher 67 | . . 23 6 . 12 26 . . Special . | . . . . . . . . . Kinetic 78 | . 76 2 . . . . . . Thermal 129 | . . 58 2 . 6 51 6 6 Explosive 67 | . . 23 6 . 12 26 . . Electromagnetic 29 | . . . . . . . 1 28 Robot Hit Streak 17 | . 6 6 1 . 3 17 8 11 Robot Miss Streak 4 | . 4 3 2 . 3 3 . 4 Penetration Max . | . . . . . . . . . Secondary Targets 3 | . . . . . . . . 3 Max Gunslinging Chain 2 | . . . . . . . . 2 Shots Hit Robots 163 | . 44 45 2 . 8 43 1 20 Core Hits 109 | . 17 35 5 . 15 28 1 8 Critical Kills 1 | . 1 . . . . . . . Critical Parts Destroyed . | . . . . . . . . . Critical Strikes 8 | . 1 4 . . . 1 . 2 Burn 6 | . . 4 . . . 1 . 1 Destroy 1 | . 1 . . . . . . . Corrupt 1 | . . . . . . . . 1 Melee Attacks 1 | . 1 . . . . . . . Impact . | . . . . . . . . . Slashing 1 | . 1 . . . . . . . Piercing . | . . . . . . . . . Sneak Attacks . | . . . . . . . . . Combat Hostiles . | . . . . . . . . . Follow-up Attacks . | . . . . . . . . . Damage Inflicted 4775 | . 379 1590 173 . 595 1629 22 387 Guns 1974 | . 379 643 22 . 59 462 22 387 Cannons 275 | . . . . . . 275 . . Explosions 2517 | . . 947 142 . 536 892 . . Melee . | . . . . . . . . . Ramming 9 | . . . 9 . . . . . Kinetic 379 | . 379 . . . . . . . Thermal 1667 | . . 756 22 . 59 737 . 93 Explosive 2404 | . . 834 142 . 536 892 . . Electromagnetic 316 | . . . . . . . 22 294 Impact . | . . . . . . . . . Slashing . | . . . . . . . . . Piercing . | . . . . . . . . . Highest Corruption 1 | . 1 . . . . . . . Average Corruption 1 | . 1 . . . . . . . Corruption Purged . | . . . . . . . . . Corruption Blocked . | . . . . . . . . . Effects 2 | . 2 . . . . . . . Energy Discharges 1 | . 1 . . . . . . . Data Loss (minor) 1 | . 1 . . . . . . . Overload Shots . | . . . . . . . . . Overflow Damage 16 | . . 4 . . . 12 . . Projectiles . | . . . . . . . . . Explosions 16 | . . 4 . . . 12 . . Melee . | . . . . . . . . . Knockbacks . | . . . . . . . . . Impact . | . . . . . . . . . Kinetic . | . . . . . . . . . Secondary . | . . . . . . . . . Self-Inflicted Damage 159 | . . 36 . . 70 53 . . Shots 7 | . . 2 . . 3 2 . . Rammed . | . . . . . . . . . Targets Rammed 2 | . . . 2 . . . . . Kicked 2 | . . . 2 . . . . . Crushed . | . . . . . . . . . Highest Temperature 464 | . 81 207 39 . 184 464 118 296 Average Temperature 86 | . 37 45 24 . 68 134 56 117 Received Heat Transfer 687 | . 324 183 . . 9 171 . . Effects 5 | . . 2 . . . 3 . . Shutdowns 1 | . . . . . . 1 . . Interference 3 | . . 2 . . . 1 . . Short Circuit 1 | . . . . . . 1 . . Siege Activations . | . . . . . . . . . Martial Activations . | . . . . . . . . . Shielding Activations . | . . . . . . . . . Robots Disrupted . | . . . . . . . . . Combat Hostiles . | . . . . . . . . . Robots Corrupted . | . . . . . . . . . Combat Hostiles . | . . . . . . . . . Parts Fried . | . . . . . . . . . Impact Corruptions . | . . . . . . . . . Robots Melted . | . . . . . . . . . Combat Hostiles . | . . . . . . . . . Parts Melted 7 | . . 1 . . . 6 . . Heat Transferred 3343 | . . 1604 37 . 111 1369 . 222 Parts Sabotaged . | . . . . . . . . . Parts Stolen . | . . . . . . . . . Parts Stripped . | . . . . . . . . . Power Chain Reactions . | . . . . . . . . . Alert | -11 -10 -9 -9 -9 -8 -8 -7 -7 ------- Run | Yrd Mat Mat Min Exi Min Mat Fac DSF Maximum Alert Level 2 | . . 2 . . 1 1 . 1 Low Security (%) 86 | 100 100 64 100 . 72 82 100 88 Level 1 11 | . . 23 . . 27 17 . 12 Level 2 2 | . . 11 . . . . . . Level 3 . | . . . . . . . . . Level 4 . | . . . . . . . . . Level 5 . | . . . . . . . . . High Security . | . . . . . . . . . Max Security . | . . . . . . . . . Peak Influence 432 | . 50 432 159 . 276 268 137 212 Initial 159 | . . . 159 . . 99 116 92 Average 98 | . 10 150 47 . 153 163 116 148 Influence Increases 2134 | . 148 696 127 . 386 546 96 135 Destroy 0b10 Robot/C 1060 | . 100 360 80 . 180 260 . 80 Destroy 0b10 Robot/NC 90 | . 10 40 . . 5 30 5 . Destroy Leader 238 | . 22 88 10 . 30 78 . 10 Successful Hack 97 | . . 1 . . . 21 75 . Disable Machine 210 | . . 45 . . 105 30 15 15 Destroy Structure 349 | . 1 132 37 . 66 112 1 . Partial Spotted 15 | . 15 . . . . . . . Lose Combat Pursuer 75 | . . 30 . . . 15 . 30 Influence Decreases 1967 | . 148 288 535 . 130 545 221 100 Entered New Map 587 | . . . 249 . . 157 141 40 Time Decay 1123 | . 131 258 286 . 130 238 80 . Lost Part 107 | . 17 30 . . . . . 60 Purge Threat 150 | . . . . . . 150 . . Squads Dispatched 5 | . 1 1 . . . 1 . 2 Investigation . | . . . . . . . . . Extermination . | . . . . . . . . . Reinforcement 4 | . 1 1 . . . . . 2 Assault . | . . . . . . . . . Garrison 1 | . . . . . . 1 . . Intercept . | . . . . . . . . . Searches Triggered . | . . . . . . . . . Construction Impeded 1 | . . 1 . . . . . . Haulers Reinforced . | . . . . . . . . . Active Scanning Responses . | . . . . . . . . . Cargo Convoy Interrupts . | . . . . . . . . . Stealth | -11 -10 -9 -9 -9 -8 -8 -7 -7 --------- Run | Yrd Mat Mat Min Exi Min Mat Fac DSF Distress Signals 3 | . 1 2 . . . . . . Communications Jammed . | . . . . . . . . . Distress Signals . | . . . . . . . . . Times Spotted 73 | . 13 23 5 . 8 16 . 8 Peak Tracking Total 5 | . 3 4 4 . 3 5 . 5 Tactical Retreats 4 | . . 1 . . . 1 . 2 Traps | -11 -10 -9 -9 -9 -8 -8 -7 -7 ------- Run | Yrd Mat Mat Min Exi Min Mat Fac DSF Traps Triggered 3 | . 1 1 . . . . . 1 Indirectly . | . . . . . . . . . Trap Hack Attempts . | . . . . . . . . . Triggered . | . . . . . . . . . Disarmed . | . . . . . . . . . Reprogrammed . | . . . . . . . . . Reused . | . . . . . . . . . Traps Extracted . | . . . . . . . . . Installed . | . . . . . . . . . Triggered . | . . . . . . . . . Machines | -11 -10 -9 -9 -9 -8 -8 -7 -7 ---------- Run | Yrd Mat Mat Min Exi Min Mat Fac DSF Machines Disabled 14 | . . 3 . . 7 2 1 1 Max in Single Turn 3 | . . 2 . . 3 1 1 1 Machines Repaired . | . . . . . . . . . Machines Dismantled . | . . . . . . . . . Machines Sabotaged . | . . . . . . . . . Overloaded Fab Kills . | . . . . . . . . . Hacking | -11 -10 -9 -9 -9 -8 -8 -7 -7 --------- Run | Yrd Mat Mat Min Exi Min Mat Fac DSF Machines Accessed 24 | . 4 6 . . . 6 8 . Terminals 19 | . 4 5 . . . 5 5 . Fabricators . | . . . . . . . . . Repair Stations 1 | . . . . . . 1 . . Recycling Units 3 | . . . . . . . 3 . Scanalyzers 1 | . . 1 . . . . . . Garrison Access . | . . . . . . . . . Total Hacks 59 | . 8 15 . . . 13 23 . Successful 29 | . 2 6 . . . 9 12 . Failed 30 | . 6 9 . . . 4 11 . Catastrophic 10 | . 3 4 . . . 1 2 . Database Lockouts . | . . . . . . . . . Manual 5 | . 4 . . 1 . . . . Terminals 47 | . 8 13 . . . 10 16 . Fabricators . | . . . . . . . . . Repair Stations 3 | . . . . . . 3 . . Recycling Units 7 | . . . . . . . 7 . Scanalyzers 2 | . . 2 . . . . . . Garrison Access . | . . . . . . . . . Terminal Hacks 21 | . 2 4 . . . 7 8 . Record 7 | . 1 2 . . . . 4 . Prototype ID Bank 1 | . 1 . . . . . . . Open DSF 1 | . . . . . . . 1 . Emergency Access Points 1 | . . . . . . . 1 . Scanalyzer Index 1 | . . . . . . 1 . . Alert Level 2 | . . . . . . 2 . . Unreport Threat 1 | . . . . . . 1 . . Locate Traps 1 | . . . . . . . 1 . Dispatch Records 2 | . . 1 . . . 1 . . Investigation Status 1 | . . 1 . . . . . . Hauler Manifests 1 | . . . . . . 1 . . Zone Layout 2 | . . . . . . 1 1 . Fabricator Hacks . | . . . . . . . . . Repair Station Hacks 2 | . . . . . . 2 . . Scan Component 1 | . . . . . . 1 . . Repair 1 | . . . . . . 1 . . Recycling Unit Hacks 4 | . . . . . . . 4 . Process 1 | . . . . . . . 1 . Report Inventory 1 | . . . . . . . 1 . Retrieve Matter 2 | . . . . . . . 2 . Scanalyzer 2 | . . 2 . . . . . . Insert Component 1 | . . 1 . . . . . . Analyze 1 | . . 1 . . . . . . Garrison Access Hacks . | . . . . . . . . . Unauthorized Hacks . | . . . . . . . . . Terminals . | . . . . . . . . . Fabricators . | . . . . . . . . . Repair Stations . | . . . . . . . . . Recycling Units . | . . . . . . . . . Scanalyzers . | . . . . . . . . . Garrison Access . | . . . . . . . . . Data Cores Recovered 1 | . 1 . . . . . . . Used . | . . . . . . . . . Hacking Detections 24 | . 4 6 . . . 6 8 . Full Trace Events 1 | . . 1 . . . . . . Feedback Events . | . . . . . . . . . Feedback Blocked . | . . . . . . . . . Robot Schematics Acquired . | . . . . . . . . . Robots Built . | . . . . . . . . . Authchips . | . . . . . . . . . Time . | . . . . . . . . . Total Robot Build Rating . | . . . . . . . . . Part Schematics Acquired 1 | . . 1 . . . . . . Parts Built . | . . . . . . . . . Authchips . | . . . . . . . . . Time . | . . . . . . . . . Total Part Build Rating . | . . . . . . . . . Parts Repaired 1 | . . . . . . 1 . . Time 38 | . . . . . . 38 . . Parts Recycled . | . . . . . . . . . Recycled Matter 41 | . . . . . . . 41 . Retrieved Matter 41 | . . . . . . . 41 . Retrieved Components . | . . . . . . . . . Parts Scanalyzed 1 | . . 1 . . . . . . Part Schematics Acquired 1 | . . 1 . . . . . . Parts Damaged . | . . . . . . . . . Bothacking | -11 -10 -9 -9 -9 -8 -8 -7 -7 ------------ Run | Yrd Mat Mat Min Exi Min Mat Fac DSF Used RIF Installer . | . . . . . . . . . Robots Hacked . | . . . . . . . . . Non-combat . | . . . . . . . . . Combat . | . . . . . . . . . Robot Hacks Applied . | . . . . . . . . . Relay Couplers Released . | . . . . . . . . . Fabnet Peak Effective % . | . . . . . . . . . Robots Rewired . | . . . . . . . . . Allies Hacked . | . . . . . . . . . Hacks Repelled . | . . . . . . . . . Allies | -11 -10 -9 -9 -9 -8 -8 -7 -7 -------- Run | Yrd Mat Mat Min Exi Min Mat Fac DSF Total Allies 2 | . . . 2 . . . . . Largest Group 2 | . . . 2 2 . . . . Highest-Rated Group 47 | . . . 47 47 . . . . Highest-Rated Ally 31 | . . . 31 31 . . . . Total Orders . | . . . . . . . . . Ally Attacks . | . . . . . . . . . Total Damage . | . . . . . . . . . Kills . | . . . . . . . . . Allies Corrupted . | . . . . . . . . . Allies Melted . | . . . . . . . . . Intel | -11 -10 -9 -9 -9 -8 -8 -7 -7 ------- Run | Yrd Mat Mat Min Exi Min Mat Fac DSF Active Infowar (turns) 1410 | . 227 665 . . . 510 8 . Sensors 686 | . 227 459 . . . . . . T.N.C. 724 | . . 206 . . . 510 8 . Robot Analysis Total . | . . . . . . . . . Derelict Logs Recovered 1 | . . . 1 . . . . . Drone Launches . | . . . . . . . . . Drone Recoveries . | . . . . . . . . . Exploration | -11 -10 -9 -9 -9 -8 -8 -7 -7 ------------- Run | Yrd Mat Mat Min Exi Min Mat Fac DSF Turns Passed 3756 | 60 539 743 873 452 304 511 174 100 Spaces Moved 3488 | 45 253 424 668 667 458 606 284 83 Core 9 | 9 . . . . . . . . Treads 45 | . . 45 . . . . . . Legs 1489 | 36 253 379 668 153 . . . . Wheels . | . . . . . . . . . Hover . | . . . . . . . . . Flight 1945 | . . . . 514 458 606 284 83 Fastest Speed 50 | 50 120 120 120 50 50 50 50 50 Average Speed 81 | 106 125 124 120 66 50 50 50 50 Slowest Speed 190 | 120 190 190 120 120 50 50 50 50 Overloaded Moves . | . . . . . . . . . Propulsion Burnouts . | . . . . . . . . . Robots Hopped 5 | . . . . . . 3 1 1 Potential Cave-ins . | . . . . . . . . . Cave-ins Triggered . | . . . . . . . . . Exploration Rate (%) 55 | 4 40 50 99 93 96 46 7 65 Regions Visited 8 Branch Regions 3 Pre-discovered Areas 1 | . . . 1 . . . . . Known Exits Taken 6 | . 1 1 . 1 1 1 1 . Unknown Exits Taken 2 | 1 . . 1 . . . . . Scrap Searched 2 | . . . 1 . 1 . . . Spaces Dug 39 | . 1 . 25 . 13 . . . Terrain Destroyed 419 | . 1 153 48 . 101 116 . . Melee 1 | . 1 . . . . . . . Projectile 2 | . . . . . . 2 . . AOE 416 | . . 153 48 . 101 114 . . Terrain Rammed . | . . . . . . . . . Walls Destroyed . | . . . . . . . . . Machines Disabled . | . . . . . . . . . Actions | -11 -10 -9 -9 -9 -8 -8 -7 -7 --------- Run | Yrd Mat Mat Min Exi Min Mat Fac DSF Total 4119 | 57 412 563 731 682 512 742 306 114 Wait 256 | . 87 32 46 . 39 48 . 4 Move 3470 | 44 252 423 667 666 457 599 281 81 Hop 5 | . . . . . . 3 1 1 Pick Up 79 | 7 12 23 3 6 . 19 7 2 Fast Attach . | . . . . . . . . . Attach 30 | 6 4 11 . 1 . 4 2 2 Detach . | . . . . . . . . . Swap 27 | . 3 3 3 . 3 8 7 . Drop 50 | . 4 17 3 9 . 11 3 3 Fire 191 | . 49 54 7 . 13 50 5 13 Melee 1 | . 1 . . . . . . . Ram . | . . . . . . . . . Kick 2 | . . . 2 . . . . . Crush . | . . . . . . . . . Escape Stasis 8 | . . . . . . . . 8 Rewire . | . . . . . . . . . Trap . | . . . . . . . . . Miscellaneous . | . . . . . . . . . Route ------- -11/Scrapyard -10/Materials (discovered 3 exits: *Mat / [*Min x2]) -9/Materials (discovered 2 exits: *Mat / *Min) -9/Mines (discovered 3 exits: *Mat x2 / *Exi) -9/Exiles (discovered 2 exits: *Min x2) -8/Mines (discovered 2 exits: *Mat x2) -8/Materials (discovered 2 exits: *Fac x2) -7/Factory -7/DSF History --------- Turn | Location | Event 6 | -11/Scrapyard | Discovered new exit (range 14) 61 | -11/Scrapyard | Entered Materials 145 | -10/Materials | Discovered new exit (range 6) 285 | -10/Materials | Core integrity fell below 50% 300 | -10/Materials | Build established: Mutant 318 | -10/Materials | Lost 3 parts (1p1n1w) 334 | -10/Materials | Discovered new exit (range 11) 518 | -10/Materials | Discovered new exit (range 13) 599 | -10/Materials | Identified exit to Materials 600 | -10/Materials | Entered another Materials area 600 | -9/Materials | Evolved 2 slots: Propulsion x2 918 | -9/Materials | Discovered new exit (range 10) 992 | -9/Materials | Identified exit to Materials 995 | -9/Materials | Build established: Scavenger-Mutant 1157 | -9/Materials | Discovered new exit (range 16) 1195 | -9/Materials | Identified exit to Mines 1343 | -9/Materials | Entered Mines 1414 | -9/Mines | Learned location of Storage (-7) 1686 | -9/Mines | Discovered exit to Materials (range 12) 1879 | -9/Mines | Received a Rocket Launcher from a helpful Derelict 1962 | -9/Mines | Discovered exit to Materials (range 4) 1997 | -9/Mines | Joined a pair of Derelicts in attacking an 0b10 outpost 2174 | -9/Mines | Deemed a non-threat by the Exiles lab entrance 2174 | -9/Mines | Discovered new exit (range 5) 2216 | -9/Mines | Entered Exiles 2216 | -9/Exiles | Accompanied by 2 allies 2232 | -9/Exiles | Discovered new exit (range 15) 2246 | -9/Exiles | Led the pair of lost Derelicts to a safe place 2255 | -9/Exiles | Identified exit to Mines 2278 | -9/Exiles | Met 8R-AWN 2294 | -9/Exiles | Met EX-HEX 2344 | -9/Exiles | Met EX-BIN 2365 | -9/Exiles | Aligned with FarCom system 2366 | -9/Exiles | Given EX-Vault access code 2394 | -9/Exiles | Opened EX-Vault 2403 | -9/Exiles | Found Prototype Flight Unit 2406 | -9/Exiles | Identified Flying Fortress v7 2433 | -9/Exiles | Warned to stay clear of 0b10 Research branches 2450 | -9/Exiles | Met EX-DEC 2510 | -9/Exiles | Discovered exit to Mines (range 14) 2549 | -9/Exiles | Visited The Gauntlet 2668 | -9/Exiles | Left Exiles lab with Flying Fortress v7 2668 | -9/Exiles | Entered Mines 2674 | -8/Mines | Discovered exit to Materials (range 11) 2693 | -8/Mines | Build established: Mutant 2795 | -8/Mines | Discovered exit to Materials (range 9) 2972 | -8/Mines | Entered Materials 2972 | -8/Materials | Evolved 2 slots: Utility x1, Weapon x1 3120 | -8/Materials | Repaired Imp. Grenade Launcher 3167 | -8/Materials | Discovered new exit (range 12) 3173 | -8/Materials | Identified exit to Factory 3432 | -8/Materials | Discovered exit to Factory (range 16) 3435 | -8/Materials | Garrison activated, responded to threat 3483 | -8/Materials | Entered Factory 3483 | -7/Factory | Evolved 2 slots: Propulsion x1, Utility x1 3512 | -7/Factory | Build established: Skirmisher 3656 | -7/Factory | Identified exit to DSF 3657 | -7/Factory | Entered DSF 3698 | -7/DSF | Additional patrols routed to DSF 3757 | -7/DSF | Self-destructed Last Messages --------------- Switching to secondary target: X-57 Shotgunner. X-57 Shotgunner destroyed. Switching to secondary target: C-17 Slicer. C-17 Slicer suffers critical hit (Burn). Imp. Medium Armor Plating severed. C-17 Slicer destroyed. Imp. VTOL Module destroyed. Critical hit (Blast). Hvy. Particle Gun destroyed. Dropped Deuterium Engine. H-61 Shepherd calls for reinforcements. ALERT: Hostile activity reported, dispatching reinforcements to area. Flying Fortress v7 destroyed. Lightning Gun destroyed. H-61 Shepherd IFF system glitched. Penetrated by Slug. Knocked back. Arc Projector destroyed. Lightning Gun destroyed. Arc Projector blasted off. Map ----- +----------------------------------------------------+ | ???????????????????#[[!!!!!#########%""""#??????? | | ???????????????#! # [!! !!# #[[##%""""#??????? | | ???????????? [ ! ^[%%]""##"#???? | | ???????????? [ [ !%]=%"""""#???? | | ???????????????????### ###[ # ]##*%=""###????? | | ???????????????????????????#[[[#]]###!*###??????? | | ???????????????????????????##########=!##???????? | | ??????????????????????????????????#[[ #???????? | | ??????????????????????????????????#[[ #???????? | | ??????????????????????? ??????????### ##???????? | | ?????????????????????= ?????????#]] ]#???????? | | ?????????????????????= ?????????#]] ]#???????? | | ?????????????????????= ?????????#]] ]#???????? | | ???????????????###???# ??????######]]###??????? | | ????????????????!!!?## a#?#]??#!!!?#!%!!#??????? | | ?????????????????!!##a ##]]]#!!!##=/!!#??????? | | ?????????????????? *!!#??????? | | ??????????????????? !!#??????? | | ???????????????????? !!#??????? | | ?????????????????????a ^ ##!!!#!!!## #??????? | | ????????????????????## xH###!??#!!!?# #??????? | | ???????????????????##; ;##???###### ###??????? | | ???????????????????#!! ==#??????#== =#???????? | | ???????????????????#!! ==#??????#== =#???????? | | ???????????????????#!! *==#??????#== =#???????? | | ???????????????????### %@##??????### ##???????? | | ???????????????????# % #??????# #???????? | | ???????????????????# % #??????# #???????? | | ???????????????????# ########## ##???????? | | ???????????????????### ###===# ### ###??????? | | ???????????????????### ###===# ## ""##?????? | | ???????????????????# """""????? | | ???????????????????# ""##"????? | | ???????????????????# # # ##"""""#??????? | | ???????????????????# #########"""""#??????? | | ???????????????????#####;###???????##"####??????? | | ???????????????????????# ???????????#"#?????????? | | ???????????????????????#?????????????""?????????? | | ????????????????????????????????????????????????? | | ????????????????????????????????????????????????? | | ????????????????????????????????????????????????? | | ????????????????????????????????????????????????? | | ????????????????????????????????????????????????? | | | | | | | | | | | | | | | +----------------------------------------------------+ Best States ------------- Heat Dissipation 34 Energy Generation 17 Energy Capacity 300 Matter Stores 300 Matter Capacity 300 Sight Range 16 Robot Scan Range 14 Terrain Scan Density 10 Armor Coverage 225 Core Shielding 20 Evasion (%) 60 Recoil Reduction 1 Particle Charging 15 Item Schematics ----------------- Imp. Heat Sink | -9/Materials | Scanalyzed Robot Schematics ------------------ None Fabricated ------------ Nothing Repaired ---------- Imp. Grenade Launcher | 58% | -8/Materials Alien Tech Used ----------------- None Achievements -------------- None Challenges ------------ None Game ------ Seed CatalystPlexusScrap Manual? 0 Play Time 00:57:57 Cumulative 22.6 hours Start 2025.06.06 @ 16:43:50 End 2025.06.06 @ 17:40:28 Sessions 1 Manual Loads 0 Difficulty Rogue Special Mode None Game No. 57 Rogue 48 Adventurer 9 Explorer 0 Win Type - Total 0 Types 0/0/0/0/0/0/0/0/0/0 Lore% 12 Gallery% 28 Achievement% 27 Wizard Run 0 Options --------- Layout 0 ASCII 0 Keyboard 0 Movement Numpad Keybinds 0 Fullscreen 1 Font 18/SmallcapsGlow Map View 76x50 Zoom Use 0% Tactical HUD 0 Map Filters NONE Filters NONE Steam 1 RUN: c0ac389a-3227-49b9-ae16-8a3b81a549ab